bitfinex/quotes_ETHUSD_20250331
["timestamp","ask_amount","ask_price","bid_price","bid_amount"]
[1743398263206,4.20935759,1815.7,1815.4,1.11723087]
[1743398263513,8.21034235,1815.6,1815.5,5.391]
[1743398263923,2.70251235,1815.6,1815.5,5.391]
[1743398266425,8.21050235,1815.6,1815.4,1.11723087]
[1743398266596,4.31546259,1815.5,1815.3,5.391]
[1743398266805,8.21113235,1815.4,1815.3,5.391]
[1743398267499,2.70251235,1815.4,1815.3,5.391]
[1743398268133,8.75251235,1815.6,1815.3,11.73094]
[1743398268303,8.75251235,1815.6,1815.3,13.01407936]
[1743398268502,2.70251235,1815.5,1815.3,13.01407936]
[1743398269003,2.70251235,1815.5,1815.3,7.50553936]
[1743398269329,2.70251235,1815.5,1815.3,6.67413936]
[1743398269829,2.70251235,1815.5,1815.3,12.18281936]
[1743398271925,2.70251235,1815.5,1815.4,0.77104601]
[1743398273233,2.70251235,1815.5,1815.3,10.89956]
[1743398274132,2.70251235,1815.5,1815.3,5.391]
[1743398274431,2.70251235,1815.5,1814.8,6.32072]
[1743398274432,5.50873,1815.3,1814.8,6.32072]
[1743398274632,9.6,1815.6,1814.8,5.391]
[1743398274633,3.51131235,1815.1,1814.8,5.391]
[1743398274930,5.51014,1814.9,1814.5,5.391]
[1743398275227,5.51014,1814.9,1814.3,5.9357196]
[1743398275228,9.02174235,1814.8,1814.3,5.5117]
[1743398275435,2.70251235,1814.5,1814.2,32.5985]
[1743398275597,2.70251235,1814.3,1814.1,0.1]
[1743398275947,8.76458235,1814.2,1814.1,0.1]
[1743398276104,20.65603059,1814.2,1814.1,0.1]
[1743398276300,20.65603059,1814.2,1813.0,37.59267046]
[1743398276301,5.51412,1813.6,1813.1,5.61521]
[1743398276499,2.70251235,1813.3,1813.2,5.391]
[1743398276800,2.70251235,1813.3,1813.1,0.1]
[1743398277003,21.3289347,1813.2,1813.1,0.1]
[1743398277212,21.3289347,1813.2,1812.3,5.75611637]
[1743398277213,6.06655,1812.8,1812.3,5.75611637]
[1743398277412,2.70251235,1812.4,1812.3,5.75611637]
[1743398277812,9.30251235,1812.4,1812.3,5.75611637]
[1743398278012,14.82005235,1812.4,1812.3,5.75611637]
[1743398278214,21.2991647,1812.4,1812.3,5.75611637]
[1743398278427,15.76077082,1812.4,1812.3,5.75611637]
[1743398278633,0.55,1812.2,1812.1,0.1]
[1743398278944,14.82066235,1812.2,1812.1,0.1]
[1743398279246,13.07911235,1812.2,1812.1,0.1]
[1743398279403,18.59726235,1812.2,1812.1,0.1]
[1743398279602,21.27902682,1812.2,1812.1,0.1]
[1743398279801,0.7766,1811.6,1811.1,0.1]
[1743398280024,9.05,1811.5,1811.1,0.1]
[1743398280221,6.05,1811.5,1811.1,5.56]
[1743398280434,12.15800505,1811.4,1811.1,5.56]
[1743398280632,6.63737505,1811.2,1811.1,0.1]
[1743398280930,18.98517505,1811.2,1811.1,0.1]
[1743398281910,0.55,1810.8,1810.3,11.02369]
[1743398282104,6.08737505,1810.6,1810.3,5.5]
[1743398282307,5.95,1810.5,1810.4,5.52364]
[1743398282527,5.52238,1810.9,1810.7,5.5225]
[1743398282528,3.0,1810.9,1810.7,5.5225]
[1743398282837,0.55,1810.8,1810.4,1.12963412]
[1743398283058,3.55,1810.4,1810.1,5.85611637]
[1743398283260,3.08737505,1810.2,1810.1,0.1]
[1743398283422,19.56778355,1810.2,1810.1,0.1]
[1743398284028,5.52486,1810.0,1809.1,0.1]
[1743398284328,3.55,1809.7,1809.1,0.1]
[1743398284534,6.305,1809.6,1809.1,0.1]
[1743398284771,9.5,1809.5,1809.1,0.1]
[1743398285056,9.16467505,1809.2,1809.1,0.1]
[1743398285224,5.95,1809.8,1809.1,0.1]
[1743398285428,5.52511,1810.0,1809.1,0.1]
[1743398285429,5.95,1810.1,1809.4,0.8104]
[1743398285629,3.0,1810.0,1809.5,5.71]
[1743398285824,5.95,1810.1,1809.9,5.52516]
[1743398286054,5.95,1810.5,1810.2,11.04804]
[1743398286357,5.95,1810.5,1810.0,5.742]
[1743398286793,14.47378,1810.4,1809.8,5.5253]
[1743398286959,0.55,1810.0,1809.9,5.741]
[1743398287254,3.0,1809.9,1809.7,5.743]
[1743398287455,3.0,1809.9,1809.7,5.52563]
[1743398287658,5.95,1810.5,1810.1,5.52434]
[1743398287864,6.7266,1811.2,1810.3,0.8104]
[1743398288033,5.95,1811.4,1811.1,5.5215]
[1743398288234,6.62266,1811.4,1811.1,11.29537]
[1743398288433,6.62266,1811.4,1810.9,5.775]
[1743398288434,3.0,1811.3,1810.9,5.775]
[1743398288638,6.62266,1811.4,1810.9,5.775]
[1743398288639,6.62266,1811.4,1811.0,5.52164]
[1743398289155,11.46972,1811.7,1811.1,5.52133]
[1743398289361,3.0,1811.6,1811.1,5.52133]
[1743398289545,5.95,1811.7,1811.5,5.52027]
[1743398289874,0.1,1811.9,1811.7,5.51944]
[1743398290032,0.1,1811.9,1811.7,5.51965]
[1743398290358,0.1,1811.9,1811.7,5.51947]
[1743398290561,0.1,1811.9,1811.7,11.03896]
[1743398291067,0.1,1811.9,1811.7,5.51947]
[1743398291740,0.1,1811.9,1811.8,5.51937]
[1743398291951,0.1,1811.9,1811.3,5.52073]
[1743398292263,0.1,1811.9,1811.1,31.852]
[1743398292264,5.61935,1811.9,1811.4,11.3364]
[1743398292463,0.55,1811.7,1811.2,5.52114]
[1743398292666,0.55,1811.3,1811.1,31.852]
[1743398292854,5.52206,1811.0,1810.4,38.16176]
[1743398293056,0.55,1810.8,1810.5,5.52307]
[1743398293266,0.55,1810.9,1810.4,31.855]
[1743398293449,0.55,1810.5,1809.7,0.8038]
[1743398293635,5.52386,1810.4,1809.8,5.52543]
[1743398293835,3.55,1810.5,1809.8,5.52527]
[1743398294057,0.55,1810.2,1809.4,6.33044]
[1743398294289,0.55,1809.9,1809.2,5.52729]
[1743398294587,0.55,1809.6,1809.1,37.48353]
[1743398294796,6.0773,1809.2,1809.1,0.1]
[1743398295531,9.5,1809.2,1808.1,5.63048]
[1743398295875,5.52993,1808.4,1808.1,0.1]
[1743398296076,3.55,1808.2,1808.1,0.1]
[1743398296363,0.55,1808.2,1808.1,6.093]
[1743398296568,9.688393,1808.2,1808.1,0.1]
[1743398296746,3.0,1808.4,1808.1,0.1]
[1743398296945,3.7551,1808.5,1808.1,0.1]
[1743398297268,6.08036,1808.2,1808.1,0.1]
[1743398297454,15.03036,1808.2,1808.1,1e-05]
[1743398297766,5.53197,1807.7,1807.1,0.1]
[1743398297932,5.53197,1807.7,1807.1,5.63372]
[1743398297933,3.553197,1807.6,1807.1,5.63372]
[1743398298133,0.553197,1807.6,1807.1,0.1]
[1743398298444,9.08342,1807.2,1807.1,0.1]
[1743398298644,9.83852,1807.2,1807.1,0.1]
[1743398298955,4.3051,1807.2,1807.1,0.1]
[1743398299163,3.55,1807.1,1806.3,6.219]
[1743398299484,4.73561,1807.2,1806.1,0.1]
[1743398299485,1.18561,1807.2,1806.1,0.1]
[1743398299765,0.55,1807.5,1806.3,6.33997]
[1743398299930,6.08251,1807.5,1806.8,5.53445]
[1743398300132,0.55,1807.3,1806.4,6.261]
[1743398300365,0.55,1807.4,1806.4,6.261]
[1743398300543,0.55,1807.4,1806.5,5.53556]
[1743398300745,3.55,1806.2,1806.1,0.1]
[1743398300955,0.7551,1806.7,1806.6,5.53525]
[1743398301172,0.355,1807.4,1807.2,5.53341]
[1743398301471,5.95,1808.5,1807.2,38.212]
[1743398301660,0.7551,1808.5,1808.1,5.53064]
[1743398301968,0.7551,1808.5,1808.4,5.52975]
[1743398302142,0.1,1808.9,1808.6,5.52896]
[1743398302344,0.1,1808.9,1808.8,5.52852]
[1743398302542,5.52969,1808.5,1807.8,5.53142]
[1743398302742,0.552969,1808.4,1807.8,6.468]
[1743398302945,4.06692901,1808.8,1807.8,6.468]
[1743398303164,0.1,1808.9,1808.4,5.52972]
[1743398303353,0.1,1808.9,1808.5,12.00844]
[1743398303563,0.1,1808.9,1808.8,5.52852]
[1743398303937,0.1,1808.9,1808.8,6.33232]
[1743398304133,0.1,1808.9,1808.8,7.518415]
[1743398304337,0.1,1809.9,1809.3,5.52683]
[1743398304544,0.1,1809.9,1809.4,12.04262]
[1743398304767,0.1,1809.9,1809.6,5.52578]
[1743398304969,0.1,1809.9,1809.6,5.52587]
[1743398305271,0.9342,1809.9,1809.7,5.52559]
[1743398305467,0.9342,1809.9,1809.8,5.52547]
[1743398305676,0.9342,1809.9,1809.7,5.52559]
[1743398305879,0.9342,1809.9,1809.8,5.52547]
[1743398306801,5.52575,1809.8,1809.2,0.8038]
[1743398307076,3.9342,1809.9,1809.4,5.52638]
[1743398307383,1.880131,1809.9,1809.6,5.52604]
[1743398307567,1.880131,1809.9,1809.3,6.519]
[1743398307568,0.9342,1809.9,1809.4,5.52646]
[1743398307769,3.9342,1809.9,1809.4,5.52646]
[1743398307971,0.9342,1809.9,1809.4,5.52639]
[1743398308179,0.9342,1809.9,1809.5,5.52636]
[1743398309184,0.8221,1809.8,1809.1,31.903]
[1743398309362,8.52632,1809.6,1809.2,6.511]
[1743398309684,0.852632,1809.6,1809.2,12.03826]
[1743398309853,3.0,1809.7,1809.3,5.52696]
[1743398310157,3.0,1809.7,1809.4,5.52665]
[1743398310357,0.8221,1809.8,1809.4,5.52665]
[1743398310358,0.55,1809.8,1809.4,5.52665]
[1743398310590,3.0,1809.7,1809.3,5.52697]
[1743398311291,5.52579,1809.7,1809.2,12.03818]
[1743398311490,0.55,1809.8,1809.2,12.03816]
[1743398311798,0.9342,1809.9,1809.4,5.52663]
[1743398312087,0.9342,1809.9,1809.5,5.52619]
[1743398312676,6.45939,1809.9,1809.4,5.52663]
[1743398313090,5.52575,1809.8,1809.2,17.56525]
[1743398313292,5.52578,1809.7,1809.2,12.03808]
[1743398313667,6.45939,1809.9,1809.3,5.52674]
[1743398313881,7.657832,1809.9,1809.4,5.52658]
[1743398314320,0.9342,1809.9,1809.6,5.52602]
[1743398314484,0.9342,1809.9,1809.8,5.52547]
[1743398314799,0.9342,1809.9,1809.7,6.481]
[1743398315103,0.9342,1809.9,1809.7,12.00665]
[1743398315685,0.9342,1809.9,1809.7,6.481]
[1743398316213,0.9342,1809.9,1809.7,12.00665]
[1743398317272,0.9342,1809.9,1809.8,5.52547]
[1743398318795,0.9342,1809.9,1809.7,5.52564]
[1743398318995,0.9342,1809.9,1809.8,6.447]
[1743398319493,0.9342,1809.9,1809.8,11.97247]
[1743398322301,0.9342,1809.9,1809.8,43.86547]
[1743398328487,0.9342,1809.9,1809.8,31.893]
[1743398328819,0.9342,1809.9,1809.5,11.91717]
[1743398328986,6.45936,1809.9,1809.5,11.91717]
[1743398329494,0.9342,1809.9,1809.7,5.52556]
[1743398329696,0.9342,1809.9,1809.8,5.52547]
[1743398331202,0.9342,1809.9,1809.8,20.02547]
[1743398331910,0.9342,1809.9,1809.8,51.91147]
[1743398332217,0.9342,1809.9,1809.8,52.71787]
[1743398336715,0.9342,1809.9,1809.8,59.04887]
[1743398337815,1e-05,1809.9,1809.8,59.04887]
[1743398338191,1e-05,1809.9,1809.8,60.1441629]
[1743398338994,1e-05,1809.9,1809.8,63.1441629]
[1743398339796,1e-05,1809.9,1809.8,63.6941629]
[1743398340520,0.1,1810.9,1810.8,5.52242]
[1743398340721,0.1,1810.9,1810.8,11.84142]
[1743398341110,0.1,1810.9,1810.8,26.34142]
[1743398341904,1e-05,1810.9,1810.8,30.13832]
[1743398342104,0.55,1811.3,1811.2,5.5212]
[1743398343136,0.55,1811.3,1811.2,20.0212]
[1743398344008,0.55,1811.3,1811.2,26.3452]
[1743398345015,1e-05,1811.3,1811.2,29.3452]
[1743398345212,1e-05,1811.3,1811.2,31.39938537]
[1743398345403,1e-05,1811.3,1811.2,29.3452]
[1743398345800,1e-05,1811.3,1811.2,30.1421]
[1743398346316,1e-05,1811.3,1811.2,30.6921]
[1743398347432,1e-05,1811.3,1811.2,31.82086379]
[1743398348022,1e-05,1811.3,1811.2,31.25186379]
[1743398350111,1e-05,1811.3,1811.2,24.94686379]
[1743398350310,1e-05,1811.3,1811.2,31.23486379]
[1743398350907,1e-05,1811.3,1811.2,31.23086379]
[1743398352731,1e-05,1811.3,1811.2,31.78086379]
[1743398355557,0.7812,1812.4,1812.3,5.51785]
[1743398355712,0.7812,1812.4,1812.3,11.75785]
[1743398356134,0.7812,1812.8,1812.5,5.51707]
[1743398356335,0.7812,1812.8,1812.3,26.25778]
[1743398356635,5.51717,1812.6,1812.4,6.248]
[1743398356846,0.551717,1812.5,1812.4,6.248]
[1743398357342,5.51717,1812.6,1812.4,6.248]
[1743398357343,5.5171,1812.6,1812.4,6.248]
[1743398357532,5.5171,1812.6,1812.3,14.5]
[1743398357712,6.29784,1812.7,1812.5,6.252]
[1743398358333,5.51693,1812.6,1812.5,6.252]
[1743398359434,6.29784,1812.7,1812.5,6.252]
[1743398360042,7.479258,1812.7,1812.5,6.252]
[1743398360359,5.51693,1812.6,1812.5,6.252]
[1743398360760,5.51693,1812.6,1812.5,6.23]
[1743398361133,6.29784,1812.7,1812.5,6.23]
[1743398361349,11.81472,1812.7,1812.5,6.23]
[1743398361533,6.29784,1812.7,1812.5,6.23]
[1743398361733,11.81472,1812.7,1812.5,6.23]
[1743398361963,6.29784,1812.7,1812.5,6.23]
[1743398363283,11.81475,1812.7,1812.5,6.23]
[1743398363461,11.81475,1812.7,1812.2,31.858]
[1743398363462,5.51706,1812.6,1812.2,31.858]
[1743398363636,7.479315,1812.7,1812.3,11.73077]
[1743398363831,1.962675,1812.7,1812.4,5.51753]
[1743398364161,0.7812,1812.7,1812.4,5.51753]
[1743398364467,0.7812,1812.7,1812.5,5.51703]
[1743398364763,0.7812,1812.7,1812.4,11.03487]
[1743398364980,0.7812,1812.7,1812.6,5.51693]
[1743398365332,0.1,1812.9,1812.7,5.51658]
[1743398365563,0.1,1812.9,1812.8,11.72132]
[1743398367167,0.1,1812.9,1812.8,6.201]
[1743398367361,0.1,1812.9,1812.8,11.71732]
[1743398367535,0.1,1812.9,1812.8,20.701]
[1743398368163,0.1,1812.9,1812.8,6.201]
[1743398369270,0.1,1812.9,1812.8,5.6371104]
[1743398370265,0.1,1812.9,1812.4,25.53467]
[1743398370266,0.7553,1812.8,1812.4,25.53467]
[1743398370454,6.27163,1812.8,1812.5,6.173]
[1743398370661,0.7553,1812.8,1812.5,11.6902]
[1743398371365,0.7553,1812.8,1812.4,14.5]
[1743398371570,5.51679,1812.7,1812.5,6.165]
[1743398371765,5.51705,1812.6,1812.2,31.858]
[1743398371967,6.27269,1812.5,1812.4,6.162]
[1743398372561,5.51798,1812.3,1812.0,6.164]
[1743398372951,5.51777,1812.4,1812.0,11.68271]
[1743398373153,5.51803,1812.3,1812.0,6.164]
[1743398374372,5.51803,1812.3,1812.1,6.154]
[1743398374568,8.51771,1812.4,1812.1,6.154]
[1743398374747,3.0,1812.4,1812.1,11.67234]
[1743398374943,0.7553,1812.5,1812.2,5.51807]
[1743398376044,6.27255,1812.5,1812.1,11.67245]
[1743398376245,0.7553,1812.5,1812.2,5.5181]
[1743398376447,5.51757,1812.4,1812.1,6.154]
[1743398376775,11.79016,1812.5,1812.0,42.88009]
[1743398376977,11.79016,1812.5,1812.1,6.144]
[1743398377552,0.7553,1812.5,1812.1,6.144]
[1743398377772,6.27261,1812.5,1812.1,11.66231]
[1743398378079,0.7553,1812.5,1812.3,5.51782]
[1743398378275,0.7553,1812.5,1812.2,5.51791]
[1743398378479,6.27259,1812.5,1812.3,6.139]
[1743398379377,0.7553,1812.5,1812.3,6.139]
[1743398379558,0.7553,1812.5,1812.3,11.65676]
[1743398379762,0.7553,1812.8,1812.6,5.5168]
[1743398380077,0.7553,1812.8,1812.7,6.13]
[1743398380265,0.1,1812.9,1812.7,11.64663]
[1743398380675,0.1,1812.9,1812.8,5.51632]
[1743398381057,0.1,1812.9,1812.7,11.64663]
[1743398381580,0.1,1812.9,1812.7,17.16303]
[1743398381898,0.1,1812.9,1812.7,11.6464]
[1743398383182,5.61614,1812.9,1812.6,37.951]
[1743398383480,6.72934,1812.9,1812.6,37.951]
[1743398383687,1.2132,1812.9,1812.6,43.46791]
[1743398383853,0.1,1812.9,1812.6,43.46791]
[1743398384054,0.1,1812.9,1812.6,43.46771]
[1743398384454,0.1,1812.9,1812.6,37.951]
[1743398384655,0.1,1812.9,1812.7,5.51663]
[1743398384907,0.1,1812.9,1812.8,5.51632]
[1743398385087,0.1,1812.9,1812.6,31.843]
[1743398385384,5.61632,1812.9,1812.8,6.106]
[1743398385897,5.61632,1812.9,1812.8,6.105]
[1743398386403,5.61602,1812.9,1812.8,6.105]
[1743398386689,0.1,1812.9,1812.8,6.105]
[1743398386990,5.61602,1812.9,1812.8,6.105]
[1743398387978,6.729194,1812.9,1812.8,6.105]
[1743398388670,5.61602,1812.9,1812.8,6.105]
[1743398390866,0.1,1812.9,1812.8,6.105]
[1743398392184,0.1,1812.9,1812.8,11.62132]
[1743398392679,0.1,1812.9,1812.8,26.12132]
[1743398393188,0.1,1812.9,1812.8,11.62132]
[1743398394375,0.1,1812.9,1812.8,13.335111]
[1743398394686,0.1,1812.9,1812.8,11.62132]
[1743398397603,0.1,1812.9,1812.8,13.52914387]
[1743398399106,0.1,1812.9,1812.8,13.44314387]
[1743398401270,0.1,1812.9,1812.8,12.65674387]
[1743398403107,0.1,1812.9,1812.8,12.65374387]
[1743398403400,0.1,1812.9,1812.8,6.64374387]
[1743398403770,0.1,1812.9,1812.8,12.64874387]
[1743398405804,0.1,1812.9,1812.8,6.64374387]
[1743398405979,0.1,1812.9,1812.8,12.63974387]
[1743398406375,0.1,1812.9,1812.8,44.47274387]
[1743398411886,0.1,1812.9,1812.8,48.77724387]
[1743398411887,1e-05,1812.9,1812.8,48.77724387]
[1743398413612,1e-05,1812.9,1812.8,50.43510987]
[1743398413980,1e-05,1812.9,1812.8,44.43910987]
[1743398414180,1e-05,1812.9,1812.8,48.18024387]
[1743398414879,1e-05,1812.9,1812.8,44.42274387]
[1743398415082,1e-05,1812.9,1812.8,38.47674387]
[1743398415421,1e-05,1812.9,1812.8,38.90942387]
[1743398415790,1e-05,1812.9,1812.8,44.42574387]
[1743398417504,1e-05,1812.9,1812.8,38.47674387]
[1743398417709,1e-05,1812.9,1812.8,44.42174387]
[1743398420217,1e-05,1812.9,1812.8,38.90542387]
[1743398420386,1e-05,1812.9,1812.8,44.42174387]
[1743398428400,1e-05,1812.9,1812.8,44.36074387]
[1743398428601,1e-05,1812.9,1812.8,58.86074387]
[1743398428905,1e-05,1812.9,1812.8,44.36074387]
[1743398429312,1e-05,1812.9,1812.8,58.86074387]
[1743398430801,1e-05,1812.9,1812.8,63.19894387]
[1743398431618,0.1,1813.9,1813.8,5.51328]
[1743398431798,0.1,1813.9,1813.8,43.22528]
[1743398432726,0.1,1813.9,1813.8,57.72528]
[1743398433957,0.1,1813.9,1813.8,58.51348]
[1743398434418,0.1,1813.9,1813.8,58.9309157]
[1743398434628,0.1,1813.9,1813.8,58.1447157]
[1743398437550,0.1,1813.9,1813.8,52.2607157]
[1743398437723,0.1,1813.9,1813.8,58.1457157]
[1743398438359,0.1,1813.9,1813.8,52.2607157]
[1743398438554,0.1,1813.9,1813.8,58.1397157]
[1743398439228,0.1,1813.9,1813.8,58.1377157]
[1743398439426,0.9283,1813.9,1813.8,37.707]
[1743398439834,0.9283,1813.9,1813.8,43.22028]
[1743398440041,0.1,1813.9,1813.8,43.22028]
[1743398441137,0.1,1813.9,1813.8,31.83]
[1743398441365,7.002576,1813.9,1813.8,38.79275633]
[1743398441678,7.002576,1813.9,1813.8,37.703]
[1743398442673,0.9283,1813.9,1813.8,37.703]
[1743398443147,6.44128,1813.9,1813.8,38.82390484]
[1743398443534,9.14644092,1813.9,1813.8,31.83]
[1743398443832,12.14644092,1813.9,1813.8,31.83]
[1743398444648,0.9283,1813.9,1813.8,31.83]
[1743398446878,0.1,1813.9,1813.8,37.34328]
[1743398447230,0.1,1813.9,1813.8,52.26178347]
[1743398448950,0.1,1813.9,1813.8,57.68328]
[1743398451359,0.1,1813.9,1813.8,58.10621668]
[1743398454392,0.1,1813.9,1813.8,58.08021668]
[1743398458055,0.1,1813.9,1813.8,61.90831668]
[1743398459452,0.1,1813.9,1813.8,61.08021668]
[1743398459650,0.1,1813.9,1813.8,58.08021668]
[1743398460580,0.1,1813.9,1813.8,43.12228]
[1743398461277,0.1,1813.9,1813.8,57.62228]
[1743398461676,0.1,1813.9,1813.8,43.11928]
[1743398462074,0.1,1813.9,1813.8,43.52949773]
[1743398463593,0.1,1813.9,1813.8,58.02949773]
[1743398465972,0.1,1813.9,1813.8,61.02949773]
[1743398466166,0.1,1813.9,1813.8,61.85969773]
[1743398466375,6.7643,1814.5,1814.3,5.51164]
[1743398466577,0.8143,1814.5,1814.4,5.756]
[1743398466984,0.8143,1814.5,1814.4,11.26746]
[1743398467191,0.8143,1814.7,1814.4,20.256]
[1743398467400,0.8143,1814.7,1814.5,5.51095]
[1743398468579,0.8143,1814.7,1814.5,11.02196]
[1743398468777,0.8143,1814.7,1814.5,5.51095]
[1743398468981,0.1,1814.9,1814.8,5.51024]
[1743398469183,0.1,1814.9,1814.8,11.25724]
[1743398470890,0.1,1814.9,1814.8,11.6717321]
[1743398471671,0.1,1814.9,1814.8,5.9247321]
[1743398471870,0.1,1814.9,1814.8,11.6707321]
[1743398472372,0.8548,1814.9,1814.7,37.32244]
[1743398472707,0.8548,1814.9,1814.8,5.75]
[1743398474107,0.8548,1814.9,1814.8,11.26024]
[1743398474295,0.1,1814.9,1814.8,11.26024]
[1743398476511,0.1,1814.9,1814.8,25.75524]
[1743398477605,0.1,1814.9,1814.8,20.01024]
[1743398477783,0.1,1814.9,1814.8,11.27624]
[1743398478345,0.1,1814.9,1814.8,20.266]
[1743398478615,0.1,1814.9,1814.8,25.77624]
[1743398479280,0.1,1814.9,1814.8,26.86698648]
[1743398480001,0.1,1814.9,1814.8,21.34874648]
[1743398480215,0.1,1814.9,1814.8,26.85898648]
[1743398480902,0.1,1814.9,1814.8,21.34874648]
[1743398481627,0.1,1814.9,1814.8,15.59074648]
[1743398481792,0.1,1814.9,1814.8,6.84174648]
[1743398481997,9.78533992,1814.9,1814.8,1.09074648]
[1743398482199,4.27539992,1814.9,1814.7,31.812]
[1743398482599,9.78548992,1814.9,1814.7,31.812]
[1743398483362,0.9266,1814.9,1814.7,37.3223]
[1743398484637,0.9266,1814.9,1814.7,31.812]
[1743398485234,0.9266,1814.9,1814.7,37.32242]
[1743398485443,0.1,1814.9,1814.8,5.51024]
[1743398486434,0.1,1814.9,1814.8,20.01024]
[1743398488802,0.1,1814.9,1814.8,20.82864]
[1743398489213,0.1,1814.9,1814.3,5.9163111]
[1743398489214,5.51024,1814.8,1814.0,5.51267]
[1743398489536,0.8123,1814.2,1813.8,11.42528]
[1743398489735,0.8123,1814.2,1813.9,20.01269]
[1743398490356,0.8123,1814.2,1813.9,14.5]
[1743398490511,0.8123,1814.2,1813.9,20.0129]
[1743398490706,0.8123,1814.2,1813.9,14.5]
[1743398491238,0.8123,1814.2,1814.0,5.51241]
[1743398491616,0.8123,1814.2,1814.0,5.51249]
[1743398492125,0.8123,1814.2,1814.0,11.02493]
[1743398492332,0.8123,1814.6,1814.1,5.51228]
[1743398492516,5.51151,1814.4,1814.2,5.906]
[1743398492849,5.51151,1814.4,1814.0,5.51267]
[1743398492850,5.51151,1814.4,1814.3,5.906]
[1743398493550,6.32381,1814.4,1814.3,5.906]
[1743398494214,11.83556,1814.4,1814.3,5.905]
[1743398494754,13.32697847,1814.4,1814.3,5.905]
[1743398495119,7.81522847,1814.4,1814.3,5.905]
[1743398497818,2.30371847,1814.4,1813.9,15.59986582]
[1743398498021,0.8123,1814.0,1813.9,14.5]
[1743398498320,0.8123,1814.0,1813.9,20.379]
[1743398498549,0.8123,1814.0,1813.7,1.08240674]
[1743398498550,6.32497,1814.0,1813.7,1.08240674]
[1743398498719,5.51342,1813.8,1813.7,5.883]
[1743398499440,6.32572,1813.8,1813.7,5.883]
[1743398499640,5.51371,1813.7,1813.5,14.5]
[1743398499937,6.32667,1813.5,1813.4,5.893]
[1743398502031,6.32649,1813.5,1813.4,5.893]
[1743398502540,0.8123,1813.5,1813.4,5.893]
[1743398503424,6.33155,1813.7,1813.4,5.893]
[1743398506154,8.59254469,1813.6,1813.4,5.893]
[1743398507251,0.8178,1813.7,1813.4,11.40738]
[1743398507455,0.8178,1813.7,1813.5,5.51418]
[1743398507852,0.8178,1813.9,1813.6,5.51389]
[1743398508150,0.8178,1813.9,1813.6,11.02758]
[1743398508350,11.4628,1814.0,1813.6,5.51369]
[1743398508735,5.95,1814.0,1813.4,11.40745]
[1743398509075,5.95,1814.0,1813.7,5.51335]
[1743398509278,5.95,1814.0,1813.8,5.844]
[1743398509560,11.46271,1814.0,1813.8,5.844]
[1743398509726,2.70293279,1813.9,1813.8,5.844]
[1743398510554,6.33044,1814.1,1813.8,5.844]
[1743398510555,0.8178,1814.1,1813.8,5.844]
[1743398510732,3.52073279,1814.1,1813.9,5.51282]
[1743398511052,3.52073279,1814.1,1813.8,11.94166]
[1743398511553,3.52073279,1814.1,1813.8,11.94156]
[1743398513427,0.8178,1814.1,1813.9,5.51297]
[1743398513752,11.46186,1814.3,1813.8,11.94156]
[1743398513753,2.70293279,1814.2,1814.0,5.51267]
[1743398513953,2.70293279,1814.2,1813.9,5.51297]
[1743398514352,2.70293279,1814.2,1813.9,6.604309]
[1743398514932,2.70293279,1814.2,1814.0,5.51264]
[1743398515132,2.70293279,1814.2,1813.9,6.604139]
[1743398515561,2.70293279,1814.2,1814.0,5.51264]
[1743398518953,9.11845307,1814.2,1813.9,1.091339]
[1743398519261,5.51251,1814.1,1813.6,11.80737]
[1743398519471,0.8274,1813.9,1813.7,5.788]
[1743398520338,9.04331279,1813.9,1813.6,5.51373]
[1743398520655,3.53033279,1813.9,1813.8,5.782]
[1743398521370,2.70293279,1814.1,1813.8,11.29515]
[1743398521958,2.70293279,1814.1,1813.8,5.782]
[1743398522164,8.21533279,1814.1,1813.8,5.782]
[1743398522354,2.70293279,1814.1,1813.8,11.29526]
[1743398523067,2.70293279,1814.1,1813.8,16.80832]
[1743398523270,2.70293279,1814.1,1813.8,11.29506]
[1743398523462,2.70293279,1814.1,1813.9,5.51295]
[1743398523764,2.70293279,1814.1,1814.0,5.51267]
[1743398524278,5.95,1814.2,1814.0,5.51267]
[1743398526167,5.95,1814.2,1814.1,5.51237]
[1743398526542,2.70293279,1814.3,1814.0,5.51267]
[1743398526742,2.70293279,1814.1,1814.0,5.51267]
[1743398528965,2.70293279,1814.1,1814.0,6.59564744]
[1743398529648,2.70293279,1814.3,1814.0,6.59564744]
[1743398529970,2.70293279,1814.5,1814.2,5.51207]
[1743398530163,2.70293279,1814.5,1814.3,5.74]
[1743398531844,8.21409279,1814.5,1814.3,5.74]
[1743398533140,2.70293279,1814.5,1814.3,5.74]
[1743398533567,2.70293279,1814.5,1814.3,11.2517]
[1743398533763,2.70293279,1814.5,1814.3,5.74]
[1743398534351,8.21410279,1814.5,1814.3,5.74]
[1743398534549,2.70293279,1814.5,1814.3,5.74]
[1743398535466,8.21409279,1814.5,1814.3,5.74]
[1743398536978,5.51223,1814.2,1813.9,31.816]
[1743398537185,11.02453,1814.2,1814.0,5.715]
[1743398537359,5.51223,1814.2,1814.0,5.715]
[1743398537677,5.51176,1814.3,1814.0,5.715]